fUST/lending_fUST_20250802
["ID","MTS","AMOUNT","RATE_DAILY","PERIOD"]
[376691612,1754081450504,-747.22,0.00023465,2]
[376691614,1754081450513,-12644.26590849,0.0002347,7]
[376691616,1754081450522,-215.03686253,0.0002347,7]
[376691618,1754081450531,-791.93,0.00023564,2]
[376691620,1754081450541,-1004.32,0.00023564,2]
[376691622,1754081450550,-460.0,0.00023564,2]
[376691624,1754081450559,-25249.74,0.000236,2]
[376691626,1754081450568,-683.07,0.00023636,2]
[376691628,1754081450578,-945.55,0.00023637,2]
[376691630,1754081450588,-1201.37,0.00023637,2]
[376691632,1754081450597,-530.28,0.00023637,2]
[376691634,1754081450606,-460.0,0.00023637,2]
[376691636,1754081450615,-172.88013426,0.00023637,2]
[376691638,1754081450625,-460.0,0.00023637,2]
[376691640,1754081450634,-2656.74,0.00023637,2]
[376691642,1754081450642,-202.22143703,0.00023637,2]
[376691644,1754081450652,-972.77,0.00023638,2]
[376691646,1754081450661,-326.1810938,0.00023664,2]
[376691648,1754081450670,-200.0,0.00023675,15]
[376691650,1754081450680,-200.0,0.00023675,15]
[376691651,1754081450690,-200.0,0.00023675,15]
[376691654,1754081450699,-200.0,0.00023675,15]
[376691655,1754081450708,-200.0,0.00023675,15]
[376691657,1754081450719,-200.0,0.00023675,15]
[376691659,1754081450728,-366.0,0.00023675,15]
[376691661,1754081450738,-1500.0,0.00023724,2]
[376691663,1754081450747,-477.92,0.00023737,2]
[376691665,1754081450756,-847.61,0.00023739,2]
[376691667,1754081450765,-1171.57,0.00023739,2]
[376691669,1754081450777,-1910.42,0.00023739,2]
[376691671,1754081450786,-747.22,0.00023739,2]
[376691673,1754081450795,-1000.0,0.00023757,2]
[376691675,1754081450805,-500.0,0.00023757,2]
[376691677,1754081450814,-791.93,0.00023838,2]
[376691679,1754081450824,-1004.32,0.00023838,2]
[376691681,1754081450833,-150.81607652,0.00023838,2]
[376691683,1754081450842,-180.0,0.00023884,5]
[376691685,1754081450853,-683.07,0.0002391,2]
[376691687,1754081450862,-945.55,0.00023911,2]
[376691689,1754081450871,-1201.37,0.00023911,2]
[376691691,1754081450880,-460.0,0.00023911,2]
[376691693,1754081450889,-460.0,0.00023911,2]
[376691695,1754081450899,-2656.74,0.00023911,2]
[376691697,1754081450908,-972.77,0.00023912,2]
[376691699,1754081450917,-298.04,0.00023951,2]
[376691701,1754081450926,-160.0,0.00024,7]
[376691703,1754081450936,-231.52694941,0.00024,7]
[376691705,1754081450945,-477.92,0.00024011,2]
[376691707,1754081450954,-847.61,0.00024013,2]
[376691709,1754081450963,-1171.57,0.00024013,2]
[376691711,1754081450975,-1910.42,0.00024013,2]
[376691714,1754081450985,-747.22,0.00024013,2]
[376691716,1754081450994,-1293.57,0.000241,7]
[376691718,1754081451004,-791.93,0.00024112,2]
[376691720,1754081451013,-1004.32,0.00024112,2]
[376691722,1754081451023,-153.0,0.00024179,2]
[376691724,1754081451032,-153.0,0.00024179,2]
[376691726,1754081451041,-153.0,0.00024179,2]
[376691728,1754081451051,-153.0,0.00024179,2]
[376691730,1754081451060,-153.0,0.00024179,2]
[376691732,1754081451070,-153.0,0.00024179,2]
[376691734,1754081451079,-153.0,0.00024181,2]
[376691736,1754081451089,-153.0,0.00024181,2]
[376691738,1754081451098,-180.0,0.00024183,5]
[376691740,1754081451108,-683.07,0.00024184,2]
[376691742,1754081451117,-945.55,0.00024185,2]
[376691744,1754081451126,-1201.37,0.00024185,2]
[376691746,1754081451135,-460.0,0.00024185,2]
[376691748,1754081451144,-460.0,0.00024185,2]
[376691750,1754081451153,-2656.74,0.00024185,2]
[376691752,1754081451163,-972.77,0.00024186,2]
[376691754,1754081451172,-625.42,0.000242,7]
[376691756,1754081451181,-2000.0,0.00024272,2]
[376691758,1754081451190,-477.92,0.00024285,2]
[376691760,1754081451199,-847.61,0.00024287,2]
[376691762,1754081451208,-1171.57,0.00024287,2]
[376691764,1754081451218,-1910.42,0.00024287,2]
[376691766,1754081451227,-747.22,0.00024287,2]
[376691768,1754081451236,-1500.0,0.00024305,2]
[376691770,1754081451246,-150.0,0.00024376,2]
[376691772,1754081451254,-179.8741025,0.00024377,2]
[376691774,1754081451264,-1454.15,0.00024383,10]
[376691776,1754081451273,-1454.15,0.00024383,10]
[376691778,1754081451282,-1454.15,0.00024383,10]
[376691780,1754081451291,-1454.15,0.00024383,10]
[376691782,1754081451300,-1454.15,0.00024383,10]
[376691784,1754081451309,-1454.15,0.00024383,10]
[376691786,1754081451319,-1454.15,0.00024383,10]
[376691788,1754081451328,-1454.15,0.00024383,10]
[376691790,1754081451337,-1454.15,0.00024383,10]
[376691792,1754081451347,-1454.15,0.00024383,10]
[376691794,1754081451356,-1454.15,0.00024383,10]
[376691796,1754081451365,-1454.15,0.00024383,10]
[376691798,1754081451374,-1454.15,0.00024383,10]
[376691800,1754081451383,-1454.15,0.00024383,10]
[376691802,1754081451396,-1454.15,0.00024383,10]
[376691805,1754081451409,-1454.15,0.00024383,10]
[376691808,1754081451423,-1454.15,0.00024383,10]
[376691810,1754081451436,-1454.15,0.00024383,10]
[376691812,1754081451449,-1454.15,0.00024383,10]
[376691815,1754081451460,-1454.15,0.00024383,10]
[376691817,1754081451474,-1454.15,0.00024383,10]
[376691819,1754081451488,-1454.15,0.00024383,10]
[376691822,1754081451499,-1454.15,0.00024383,10]
[376691824,1754081451512,-1454.33753619,0.00024383,10]
[376691826,1754081451525,-791.93,0.00024386,2]
[376691829,1754081451540,-1004.32,0.00024386,2]
[376691831,1754081451553,-211.61,0.0002439,7]
[376691834,1754081451565,-211.61,0.00024392,7]
[376691836,1754081451577,-526.925583,0.000244,10]
[376691838,1754081451591,-12644.26590849,0.000244,10]
[376691841,1754081451603,-160.0,0.000244,10]
[376691843,1754081451615,-231.52694941,0.000244,10]
[376691845,1754081451626,-215.03686253,0.000244,10]
[376691847,1754081451638,-312.16666667,0.000244,10]
[376691850,1754081451650,-158.7,0.00024406,7]
[376691852,1754081451661,-211.61,0.00024406,7]
[376691854,1754081451674,-165.18,0.00024423,7]
[376691856,1754081451687,-164.6,0.00024423,7]
[376691859,1754081451697,-683.07,0.00024458,2]
[376691861,1754081451710,-945.55,0.00024459,2]
[376691863,1754081451723,-1201.37,0.00024459,2]
[376691865,1754081451733,-529.0993727,0.00024459,2]
[376691867,1754081451744,-534.89,0.00024459,2]
[376691870,1754081451756,-2656.74,0.00024459,2]
[376691872,1754081451767,-972.77,0.0002446,2]
[376691874,1754081451782,-180.0,0.00024483,6]
[376691876,1754081451795,-24930.5,0.000245,2]
[376691879,1754081451808,-158.7,0.00024506,7]
[376691881,1754081451819,-211.61,0.00024506,7]
[376691883,1754081451833,-165.18,0.00024523,7]
[376691886,1754081451845,-164.6,0.00024523,7]
[376691888,1754081451858,-477.92,0.00024559,2]
[376691890,1754081451870,-847.61,0.00024561,2]
[376691893,1754081451883,-1171.57,0.00024561,2]
[376691895,1754081451893,-1910.42,0.00024561,2]
[376691897,1754081451903,-747.22,0.00024561,2]
[376691899,1754081451913,-158.7,0.00024606,7]
[376691901,1754081451923,-800.0,0.00024609,2]
[376691903,1754081451934,-800.0,0.00024622,2]
[376691905,1754081451946,-165.18,0.00024623,7]
[376691908,1754081451960,-164.6,0.00024623,7]
[376691910,1754081451975,-800.0,0.00024651,2]
[376691912,1754081451986,-200.0,0.00024658,15]
[376691914,1754081451996,-380.0,0.00024658,2]
[376691917,1754081452006,-791.93,0.0002466,2]
[376691919,1754081452018,-1004.32,0.0002466,2]
[376691921,1754081452029,-500.0,0.00024672,2]
[376691923,1754081452041,-500.0,0.00024691,2]
[376691926,1754081452052,-158.73,0.00024706,7]
[376691928,1754081452062,-165.18,0.00024723,7]
[376691930,1754081452073,-164.6,0.00024723,7]
[376691932,1754081452083,-683.07,0.00024732,2]
[376691934,1754081452094,-945.55,0.00024733,2]
[376691936,1754081452104,-1201.37,0.00024733,2]
[376691939,1754081452115,-2656.74,0.00024733,2]
[376691941,1754081452125,-972.77,0.00024734,2]
[376691943,1754081452135,-180.0,0.00024782,6]
[376691945,1754081452146,-800.0,0.00024786,2]
[376691947,1754081452156,-500.0,0.0002479,2]
[376691949,1754081452167,-326.1810938,0.00024792,2]
[376691951,1754081452177,-500.0,0.00024792,2]
[376691954,1754081452188,-3670.38,0.000248,7]
[376691956,1754081452198,-18453.105562,0.000248,2]
[376691957,1754081452209,-3077.65366433,0.00024813,2]
[376691958,1754081452221,-2500.0,0.0002482,2]
[376691959,1754081452232,-165.18,0.00024823,7]
[376691960,1754081452243,-164.6,0.00024823,7]
[376691961,1754081452253,-477.92,0.00024833,2]
[376691962,1754081452264,-847.61,0.00024835,2]
[376691963,1754081452274,-1171.57,0.00024835,2]
[376691964,1754081452284,-1910.42,0.00024835,2]
[376691965,1754081452294,-747.22,0.00024835,2]
[376691966,1754081452304,-500.0,0.00024836,2]
[376691967,1754081452315,-419.70348114,0.00024853,2]
[376691968,1754081452326,-200.0,0.00024873,2]
[376691969,1754081452337,-500.0,0.00024873,2]
[376691970,1754081452347,-150.0,0.00024873,2]
[376691971,1754081452357,-151.0,0.000249,7]
[376691972,1754081452367,-151.0,0.000249,7]
[376691973,1754081452378,-151.0,0.000249,7]
[376691974,1754081452388,-151.0,0.000249,7]
[376691976,1754081452398,-151.0,0.000249,7]
[376691977,1754081452409,-75736.76569761,0.000249,2]
[376691979,1754081452419,-151.0,0.000249,7]
[376691982,1754081452430,-151.0,0.000249,7]
[376691984,1754081452440,-151.0,0.000249,7]
[376691986,1754081452450,-151.0,0.000249,7]
[376691988,1754081452460,-463721.840875,0.000249,2]
[376691990,1754081452471,-151.0,0.000249,7]
[376691992,1754081452482,-151.0,0.000249,7]
[376691994,1754081452492,-151.0,0.000249,7]
[376691996,1754081452502,-823.0,0.00024911,2]
[376691998,1754081452513,-165.18,0.00024923,7]
[376692001,1754081452523,-164.6,0.00024923,7]
[376692003,1754081452533,-500.0,0.00024925,2]
[376692005,1754081452543,-500.0,0.00024933,2]
[376692007,1754081452554,-791.93,0.00024934,2]
[376692009,1754081452564,-1004.32,0.00024934,2]
[376692011,1754081452575,-800.0,0.00024953,2]
[376692013,1754081452586,-501.86393037,0.00024979,2]
[376692016,1754081452596,-151.0,0.00024979,2]
[376692018,1754081452607,-151.0,0.00024979,2]
[376692020,1754081452618,-151.0,0.00024979,2]
[376692022,1754081452627,-151.0,0.00024979,2]
[376692024,1754081452637,-151.0,0.00024979,2]
[376692026,1754081452645,-151.0,0.00024979,2]
[376692028,1754081452655,-151.0,0.00024979,2]
[376692030,1754081452664,-151.0,0.00024979,2]
[376692032,1754081452673,-151.0,0.00024979,2]
[376692034,1754081452682,-151.0,0.00024979,2]
[376692036,1754081452691,-151.0,0.00024979,2]
[376692038,1754081452700,-151.0,0.00024979,2]
[376692040,1754081452709,-151.0,0.00024979,2]
[376692057,1754081452719,-151.0,0.00024979,2]
[376692060,1754081452879,-151.0,0.00024979,2]
[376692062,1754081452889,-151.0,0.00024979,2]
[376692064,1754081452897,-151.0,0.00024979,2]
[376692066,1754081452906,-151.0,0.00024979,2]
[376692068,1754081452915,-151.0,0.00024979,2]
[376692070,1754081452924,-151.0,0.00024979,2]
[376692072,1754081452933,-2030.296672,0.00024979,2]
[376692074,1754081452943,-151.0,0.00024979,2]
[376692076,1754081452952,-151.0,0.00024979,2]
[376692077,1754081452961,-151.0,0.00024979,2]
[376692079,1754081452971,-151.0,0.00024979,2]
[376692081,1754081452980,-151.0,0.00024979,2]
[376692083,1754081452989,-151.0,0.00024979,2]
[376692085,1754081452998,-151.0,0.00024979,2]
[376692087,1754081453008,-151.0,0.00024979,2]
[376692089,1754081453018,-151.0,0.00024979,2]
[376692092,1754081453028,-151.0,0.00024979,2]
[376692094,1754081453037,-151.0,0.00024979,2]
[376692096,1754081453046,-151.0,0.00024979,2]
[376692098,1754081453055,-151.0,0.00024979,2]
[376692100,1754081453064,-151.0,0.00024979,2]
[376692102,1754081453074,-151.0,0.00024979,2]
[376692103,1754081453083,-151.0,0.00024979,2]
[376692105,1754081453092,-151.0,0.00024979,2]
[376692108,1754081453102,-151.0,0.00024979,2]
[376692110,1754081453111,-151.0,0.00024979,2]
[376692112,1754081453120,-151.0,0.00024979,2]
[376692114,1754081453129,-151.0,0.00024979,2]
[376692115,1754081453138,-151.0,0.00024979,2]
[376692117,1754081453147,-151.0,0.00024979,2]
[376692120,1754081453158,-151.0,0.00024979,2]
[376692122,1754081453167,-683.07,0.00025006,2]
[376692123,1754081453176,-945.55,0.00025007,2]
[376692125,1754081453186,-1201.37,0.00025007,2]
[376692127,1754081453195,-2656.74,0.00025007,2]
[376692129,1754081453203,-972.77,0.00025008,2]
[376692131,1754081453213,-800.0,0.00025022,2]
[376692133,1754081453223,-165.18,0.00025023,7]
[376692135,1754081453231,-164.6,0.00025023,7]
[376692137,1754081453240,-225.52343445,0.00025032,2]
[376692139,1754081453250,-1912.006082,0.00025034,2]
[376692141,1754081453259,-500.0,0.00025056,2]
[376692143,1754081453268,-3077.65366432,0.00025061,2]
[376692145,1754081453277,-500.0,0.00025072,2]
[376692147,1754081453286,-800.0,0.00025072,2]
[376692149,1754081453295,-180.0,0.00025082,6]
[376692151,1754081453304,-500.0,0.00025086,2]
[376692153,1754081453313,-500.0,0.00025105,2]
[376692155,1754081453323,-477.92,0.00025107,2]
[376692157,1754081453332,-847.61,0.00025109,2]
[376692159,1754081453341,-1171.57,0.00025109,2]
[376692161,1754081453350,-1910.42,0.00025109,2]
[376692163,1754081453359,-747.22,0.00025109,2]
[376692165,1754081453368,-500.0,0.00025116,2]
[376692167,1754081453377,-165.23,0.00025123,7]
[376692169,1754081453387,-164.6,0.00025123,7]
[376692171,1754081453396,-800.0,0.00025158,2]
[376692173,1754081453406,-800.0,0.00025195,2]
[376692175,1754081453415,-25249.74,0.000252,2]
[376692177,1754081453425,-791.93,0.00025208,2]
[376692179,1754081453435,-1004.32,0.00025208,2]
[376692181,1754081453444,-220.44,0.00025216,7]
[376692183,1754081453453,-164.63,0.00025223,7]
[376692185,1754081453462,-500.0,0.00025241,2]
[376692187,1754081453471,-500.0,0.00025272,2]
[376692189,1754081453480,-683.07,0.0002528,2]
[376692191,1754081453489,-945.55,0.00025281,2]
[376692193,1754081453498,-1201.37,0.00025281,2]
[376692196,1754081453508,-2656.74,0.00025281,2]
[376692198,1754081453518,-972.77,0.00025282,2]
[376692200,1754081453527,-800.0,0.00025283,2]
[376692201,1754081453537,-3077.65366432,0.00025309,2]
[376692203,1754081453546,-934.10066384,0.00025368,2]
[376692205,1754081453556,-500.0,0.00025378,2]
[376692208,1754081453565,-180.0,0.00025381,6]
[376692210,1754081453574,-477.92,0.00025381,2]
[376692211,1754081453583,-847.61,0.00025383,2]
[376692213,1754081453592,-1171.57,0.00025383,2]
[376692215,1754081453602,-1910.42,0.00025383,2]
[376692217,1754081453611,-747.22,0.00025383,2]
[376692219,1754081453620,-400.0,0.00025421,2]
[376692221,1754081453629,-250.0,0.00025428,2]
[376692223,1754081453639,-4000.0,0.0002545,4]
[376692225,1754081453648,-800.0,0.00025476,2]
[376692227,1754081453657,-791.93,0.00025482,2]
[376692229,1754081453667,-1004.32,0.00025482,2]
[376692231,1754081453676,-2146.0,0.00025545,2]
[376692233,1754081453685,-635.0,0.00025545,2]
[376692235,1754081453695,-976.314,0.00025545,2]
[376692237,1754081453704,-407.0,0.00025545,2]
[376692239,1754081453713,-500.0,0.00025547,2]
[376692241,1754081453723,-683.11166717,0.00025553,2]
[376692244,1754081453733,-945.55,0.00025555,2]
[376692246,1754081453742,-1201.40040467,0.00025555,2]
[376692248,1754081453751,-2656.8129878,0.00025555,2]
[376692250,1754081453761,-972.92071257,0.00025556,2]
[376692252,1754081453771,-3077.65366432,0.00025558,2]
[376692254,1754081453783,-800.0,0.00025562,2]
[376692256,1754081453792,-500.0,0.00025579,2]
[376692258,1754081453802,-800.0,0.00025604,2]
[376692260,1754081453811,-721.31485501,0.00025609,2]
[376692262,1754081453821,-500.0,0.00025616,2]
[376692264,1754081453830,-500.0,0.00025635,2]
[376692266,1754081453840,-478.14608646,0.00025655,2]
[376692268,1754081453849,-847.64,0.00025656,2]
[376692270,1754081453859,-1171.677875,0.00025656,2]
[376692272,1754081453868,-1910.45343581,0.00025656,2]
[376692274,1754081453877,-747.25622786,0.00025656,2]
[376692276,1754081453886,-500.0,0.00025661,2]
[376692278,1754081453896,-500.0,0.00025679,2]
[376692280,1754081453905,-180.0,0.00025681,7]
[376692282,1754081453914,-500.0,0.00025752,2]
[376692284,1754081453923,-791.93,0.00025756,2]
[376692286,1754081453932,-1004.32,0.00025756,2]
[376692288,1754081453942,-500.0,0.00025757,2]
[376692290,1754081453951,-500.0,0.00025757,2]
[376692292,1754081453960,-194.90268976,0.00025775,2]
[376692294,1754081453969,-500.0,0.000258,2]
[376692296,1754081453979,-3077.65366432,0.00025806,2]
[376692298,1754081453988,-800.0,0.00025807,2]
[376692300,1754081453997,-812.75693972,0.00025813,2]
[376692302,1754081454007,-500.0,0.00025837,2]
[376692304,1754081454016,-220.44,0.00025859,7]
[376692306,1754081454025,-165.36659898,0.00025863,2]
[376692308,1754081454034,-165.36659899,0.00025863,2]
[376692310,1754081454043,-1293.57,0.000259,7]
[376692312,1754081454052,-800.0,0.00025911,2]
[376692314,1754081454061,-800.0,0.00025915,2]
[376692316,1754081454071,-326.1810938,0.00025919,2]
[376692318,1754081454080,-500.0,0.00025966,2]
[376692319,1754081454089,-180.0,0.0002598,7]
[376692321,1754081454098,-800.0,0.00025994,2]
[376692324,1754081454108,-200.0,0.00025996,15]
[376692326,1754081454117,-200.0,0.00025996,15]
[376692328,1754081454126,-200.0,0.00025996,15]
[376692330,1754081454136,-200.0,0.00025996,15]
[376692332,1754081454145,-200.0,0.00025996,15]
[376692334,1754081454155,-200.0,0.00025996,15]
[376692336,1754081454164,-200.0,0.00025996,15]
[376692338,1754081454173,-200.0,0.00025996,15]
[376692340,1754081454183,-200.0,0.00025996,15]
[376692341,1754081454192,-394.0,0.00025996,15]
[376692344,1754081454201,-500.0,0.00025999,2]
[376692346,1754081454210,-791.96600135,0.0002603,2]
[376692348,1754081454220,-1004.50852038,0.0002603,2]
[376692350,1754081454230,-3077.65366432,0.00026054,2]
[376692352,1754081454239,-500.0,0.00026071,2]
[376692354,1754081454248,-608.0089912,0.00026092,2]
[376692356,1754081454257,-625.42,0.000261,7]
[376692358,1754081454266,-800.0,0.00026138,2]
[376692360,1754081454275,-500.0,0.00026155,2]
[376692362,1754081454287,-500.0,0.00026169,2]
[376692364,1754081454296,-3670.38,0.000262,7]
[376692366,1754081454305,-165.36659898,0.00026219,2]
[376692368,1754081454314,-165.36659899,0.00026219,2]
[376692370,1754081454323,-500.0,0.00026229,2]
[376692372,1754081454332,-500.0,0.00026275,2]
[376692374,1754081454342,-800.0,0.00026275,2]
[376692376,1754081454351,-180.0,0.0002628,7]
[376692378,1754081454360,-3077.65366432,0.00026302,2]
[376692380,1754081454369,-800.0,0.00026318,2]
[376692382,1754081454378,-800.0,0.00026347,2]
[376692384,1754081454388,-817.10700353,0.00026349,2]
[376692386,1754081454397,-800.0,0.00026362,2]
[376692388,1754081454406,-966.45,0.00026381,2]
[376692390,1754081454415,-800.0,0.00026397,2]
[376692391,1754081454424,-800.0,0.00026448,2]
[376692393,1754081454434,-157.605326,0.00026475,3]
[376692395,1754081454443,-499.3,0.00026476,2]
[376692398,1754081454452,-18729.08,0.000265,11]
[376692399,1754081454462,-220.44,0.00026502,7]
[376692401,1754081454472,-3077.65366432,0.00026551,2]
[376692404,1754081454481,-500.0,0.00026569,2]
[376692406,1754081454490,-180.0,0.00026579,7]
[376692407,1754081454499,-150.0,0.00026592,2]
[376692409,1754081454509,-157.605326,0.00026595,7]
[376692411,1754081454518,-800.0,0.00026598,2]
[376692414,1754081454529,-500.0,0.00026687,2]
[376692416,1754081454538,-167.67105433,0.00026702,2]
[376692418,1754081454548,-500.0,0.00026704,2]
[376692420,1754081454558,-500.0,0.00026728,2]
[376692422,1754081454567,-157.605326,0.0002677,14]
[376692424,1754081454577,-800.0,0.00026771,2]
[376692426,1754081454586,-500.0,0.00026777,2]
[376692428,1754081454596,-500.0,0.00026779,2]
[376692430,1754081454606,-800.0,0.00026793,2]
[376692432,1754081454615,-3077.65366432,0.00026799,2]
[376692434,1754081454624,-25249.74,0.000268,2]
[376692436,1754081454633,-800.0,0.00026839,2]
[376692437,1754081454642,-500.0,0.00026862,2]
[376692440,1754081454652,-180.0,0.00026879,7]
[376692442,1754081454662,-500.0,0.00026918,2]
[376692444,1754081454671,-500.0,0.00026996,2]
[376692446,1754081454681,-6826.30198568,0.00026998,2]
[376692448,1754081454691,-151.0,0.00026998,7]
[376692450,1754081454700,-1756.0,0.00026998,3]
[376692452,1754081454709,-551.64857745,0.00026998,2]
[376692454,1754081454718,-604.11,0.00027,2]
[376692455,1754081454727,-460.76838597,0.00027,3]
[376692458,1754081454737,-160.0,0.00027,3]
[376692460,1754081454747,-151.0,0.00027,2]
[376692462,1754081454756,-160.0,0.00027,3]
[376692464,1754081454766,-12644.26590849,0.00027,3]
[376692466,1754081454775,-160.0,0.00027,3]
[376692468,1754081454789,-151.0,0.00027,2]
[376692470,1754081454798,-151.0,0.00027,2]
[376692472,1754081454807,-231.52694941,0.00027,3]
[376692474,1754081454817,-151.0,0.00027,2]
[376692476,1754081454828,-248.53632048,0.00027,2]
[376692478,1754081454838,-160.0,0.00027,3]
[376692480,1754081454847,-248.53632048,0.00027,2]
[376692482,1754081454857,-215.03686253,0.00027,3]
[376692484,1754081454866,-800.0,0.00027,2]
[376692486,1754081454875,-1211.87883635,0.00027011,18]
[376692488,1754081454884,-185.84935718,0.00027032,2]
[376692490,1754081454893,-11557.05152361,0.00027032,2]
[376692492,1754081454903,-500.0,0.00027039,2]
[376692493,1754081454922,-3077.65366432,0.00027047,2]
[376692496,1754081454936,-326.1810938,0.00027047,2]
[376692497,1754081454945,-151.0,0.00027062,7]
[376692500,1754081454955,-157.605326,0.000271,10]
[376692502,1754081454964,-157.605326,0.000271,3]
[376692504,1754081454974,-157.605326,0.000271,11]
[376692506,1754081454983,-2000.0,0.000271,2]
[376692508,1754081454992,-150.232838,0.000271,2]
[376692510,1754081455001,-151.0,0.000271,2]
[376692511,1754081455011,-151.0,0.000271,2]
[376692513,1754081455020,-151.0,0.000271,2]
[376692515,1754081455032,-151.0,0.000271,2]
[376692518,1754081455053,-500.0,0.00027101,2]
[376692519,1754081455071,-151.0,0.00027122,10]
[376692521,1754081455082,-151.0,0.00027122,10]
[376692524,1754081455092,-151.0,0.00027122,10]
[376692526,1754081455102,-151.0,0.00027122,10]
[376692528,1754081455112,-151.0,0.00027122,10]
[376692530,1754081455123,-151.0,0.00027122,10]
[376692532,1754081455134,-151.0,0.00027122,10]
[376692534,1754081455145,-151.28167398,0.00027122,10]
[376692536,1754081455155,-151.0,0.00027122,10]
[376692538,1754081455165,-151.0,0.00027122,10]
[376692540,1754081455174,-198.0,0.00027122,10]
[376692542,1754081455185,-500.0,0.00027122,2]
[376692544,1754081455199,-151.0,0.00027122,10]
[376692546,1754081455208,-151.0,0.00027122,10]
[376692548,1754081455217,-151.0,0.00027122,10]
[376692550,1754081455228,-151.0,0.00027122,10]
[376692552,1754081455237,-151.0,0.00027122,10]
[376692554,1754081455247,-151.0,0.00027122,10]
[376692556,1754081455256,-151.0,0.00027122,10]
[376692558,1754081455265,-725.0,0.00027122,10]
[376692560,1754081455274,-151.0,0.00027122,10]
[376692562,1754081455283,-201.70822039,0.00027122,10]
[376692564,1754081455292,-151.0,0.00027122,10]
[376692566,1754081455301,-245.28770264,0.00027122,2]
[376692568,1754081455310,-151.0,0.00027122,10]
[376692569,1754081455319,-151.0,0.00027122,10]
[376692571,1754081455329,-151.0,0.00027122,10]
[376692574,1754081455339,-151.0,0.00027122,10]
[376692576,1754081455348,-151.0,0.00027122,10]
[376692578,1754081455357,-151.0,0.00027122,10]
[376692580,1754081455367,-151.0,0.00027123,7]
[376692582,1754081455376,-860.4402922,0.00027123,2]
[376692583,1754081455385,-160.1872996,0.00027123,2]
[376692586,1754081455395,-160.1872996,0.00027123,2]
[376692588,1754081455404,-160.1872996,0.00027123,2]
[376692590,1754081455413,-159.972618,0.00027123,2]
[376692592,1754081455422,-160.1872996,0.00027123,2]
[376692594,1754081455431,-578.4830312,0.00027123,2]
[376692595,1754081455440,-430.3749276,0.00027123,2]
[376692597,1754081455449,-178.5305504,0.00027123,2]
[376692599,1754081455458,-153.0,0.00027123,2]
[376692601,1754081455468,-153.0,0.00027123,2]
[376692602,1754081455479,-578.4830312,0.00027123,2]
[376692603,1754081455488,-160.1872996,0.00027123,2]
[376692604,1754081455498,-430.3749276,0.00027123,2]
[376692605,1754081455507,-153.0,0.00027123,2]
[376692606,1754081455516,-178.5305504,0.00027123,2]
[376692607,1754081455526,-578.4830312,0.00027123,2]
[376692608,1754081455536,-430.3749276,0.00027123,2]
[376692609,1754081455545,-153.0,0.00027123,2]
[376692610,1754081455555,-430.3749276,0.00027123,2]
[376692611,1754081455564,-160.1872996,0.00027123,2]
[376692612,1754081455574,-578.4830312,0.00027123,2]
[376692613,1754081455583,-178.5305504,0.00027123,2]
[376692614,1754081455592,-153.0,0.00027123,2]